Cogmind - Beta 10.1 @@@ ROGUE MODE // 2020.10.01 @ 04:46:10 Player: Calanor Result: Destroyed by S-10 Pest with Light Assault Rifle Performance ------------- Evolutions (1) 500 Regions Visited (5) 1000 Robots Destroyed (99) 495 Value Destroyed (2290) 2290 Prototype IDs (32) 640 Alien Tech Used (0) 0 Bonus (272) 272 TOTAL SCORE: 5197 Bonus ------- Aligned with FarCom 300 Friendly Fire -28 Cogmind --------- Core Integrity 0/400 Matter 250/300 Energy 280/280 System Corruption 2% Temperature Cool (0) Movement Treading (160) Location -8/Mines Parts ------- > --- POWER (1) -------- Heavy Ion Engine > --- PROPULSION (3) --- Light Treads Light Treads > --- UTILITY (3) ------ Heat Sink Large Storage Unit Hacking Suite > --- WEAPON (2) ------- AWS/Gauss > --- INVENTORY (10) --- Heavy Ion Engine Large Battery (300) Hardened Medium Armor Plating Improved EM Shotgun Improved Medium Laser Improved Assault Rifle EMP Blaster Mini Grenade Launcher Improved Datajack Mining Laser Peak State ------------ > --- POWER ------------ Heavy Ion Engine > --- PROPULSION ------- Light Treads Light Treads > --- UTILITY ---------- Large Storage Unit 0b10 Alert Chip Hacking Suite > --- WEAPON ----------- AWS/Gauss > --- INVENTORY -------- Heavy Ion Engine Wheel Heat Sink Large Battery Hardened Medium Armor Plating Improved EM Shotgun Improved Assault Rifle EMP Blaster Mini Grenade Launcher [Rating: 32] Favorites ----------- Power Heavy Ion Engine Engine Heavy Ion Engine Propulsion Light Treads Treads Light Treads Leg Aluminum Leg Wheel Armored Wheel Flight Unit Improved Flight Unit Utility Large Storage Unit Device Heat Sink Storage Large Storage Unit Processor 0b10 Alert Chip Hackware Hacking Suite Protection Light Armor Plating Weapon Heavy Assault Rifle Energy Gun Improved Medium Laser Ballistic Gun Heavy Assault Rifle Ballistic Cannon Light Cannon Launcher EMP Blaster Special Weapon Mining Laser Slashing Weapon Longsword +1 Build | -11 -10 -9 -9 -9 -8 ------- Run | Scr Mat Mat Min Exi Min Slots Evolved 2 | . . 2 . . . Power . | . . . . . . Propulsion 1 | . . 1 . . . Utility 1 | . . 1 . . . Weapon . | . . . . . . Parts Attached 92 | 7 23 47 10 5 . Power 8 | 1 2 5 . . . Engine 8 | 1 2 5 . . . Core . | . . . . . . Reactor . | . . . . . . Propulsion 16 | 2 4 10 . . . Treads 5 | 2 . 3 . . . Leg 2 | . 2 . . . . Wheel 8 | . 2 6 . . . Hover . | . . . . . . Flight 1 | . . 1 . . . Utility 16 | 1 5 8 . 2 . Device 6 | . 2 3 . 1 . Storage 6 | 1 3 2 . . . Processor 1 | . . . . 1 . Hackware 2 | . . 2 . . . Protection 1 | . . 1 . . . Artifact . | . . . . . . Weapon 52 | 3 12 24 10 3 . Energy Gun 21 | 1 1 13 5 1 . Energy Cannon . | . . . . . . Ballistic Gun 14 | 2 6 4 1 1 . Ballistic Cannon 4 | . 1 3 . . . Launcher 5 | . 2 3 . . . Special Weapon 7 | . 2 1 4 . . Impact Weapon . | . . . . . . Slashing Weapon 1 | . . . . 1 . Piercing Weapon . | . . . . . . Special Melee Weapon . | . . . . . . Unidentified Prototypes 6 | . . 3 . 3 . Parts Lost 9 | . 1 6 2 . . Power 1 | . . 1 . . . Propulsion 3 | . 1 1 1 . . Utility 1 | . . 1 . . . Weapon 4 | . . 3 1 . . Highest Loss Streak 2 | . 1 2 2 . . Average Slot Usage (%) 95 | . 98 94 98 85 77 Engine 11 | . 14 10 11 11 11 Treads 13 | . 7 8 31 22 22 Leg 4 | . 15 . . . . Wheel 11 | . 4 24 . . . Device 10 | . 8 10 11 11 11 Storage 13 | . 18 11 11 11 11 Hackware 6 | . . 7 11 11 11 Energy Gun 9 | . 1 11 19 8 . Ballistic Gun 10 | . 23 5 . 11 11 Ballistic Cannon 2 | . 2 5 . . . Naked Turns . | . . . . . . Heaviest Build 35 | 11 29 31 31 35 35 Greatest Support 60 | 40 40 60 60 40 40 Greatest Overweight (x) 10 | . 2 10 . . . Average Overweight (x) . | . . . . . . Largest Inventory Capacity 16 | 6 14 16 10 10 10 Average Capacity 9 | 5 9 10 10 10 10 Most Carried 10 | 2 10 10 10 10 10 Average Carried 8 | . 6 9 9 9 10 Final Capacity 10 | 6 10 10 10 10 10 Final Carried 10 | 2 9 10 9 10 10 Class Distribution -------------------- 66% | Mutant 33% | Scavenger-Mutant Dominant Class ---------------- Mutant | -10/Materials Mutant | -9/Materials Scavenger-Mutant | -9/Mines Mutant | -9/Exiles Mutant | -8/Mines Resources | -11 -10 -9 -9 -9 -8 ----------- Run | Scr Mat Mat Min Exi Min Matter Collected 2104 | 238 577 1189 100 . . Remotely . | . . . . . . Salvage Created 3184 | . 765 1902 445 72 . Parts 209 | . 47 123 32 7 . Haulers Intercepted 7 | . 2 5 . . . Recyclers Shooed 3 | . 3 . . . . Parts Field Recycled . | . . . . . . Retrieved Matter . | . . . . . . Parts Self-Destructed . | . . . . . . Prevented . | . . . . . . Kills | -11 -10 -9 -9 -9 -8 ------- Run | Scr Mat Mat Min Exi Min Combat Hostiles Destroyed 68 | . 11 39 15 3 . Guns 50 | . 10 23 14 3 . Cannons 12 | . . 11 1 . . AOE 5 | . 1 4 . . . Classes Destroyed 15 | . 6 5 2 2 . Worker 2 | . . 2 . . . Builder 3 | . 1 2 . . . Tunneler 1 | . . . 1 . . Hauler 7 | . 2 5 . . . Recycler 6 | . 3 3 . . . Operator 4 | . . 4 . . . Watcher 8 | . 3 5 . . . Swarmer 20 | . 2 13 5 . . Grunt 32 | . 9 14 8 1 . Brawler 1 | . . 1 . . . Duelist 1 | . . 1 . . . Sentry 10 | . . 10 . . . Demolisher 1 | . . . . 1 . Hunter 1 | . . . . 1 . Assembled 2 | . . . 2 . . Best Kill Streak 8 | . 4 8 6 3 . Combat Bots Only 6 | . 4 5 6 3 . Max Kills in Single Turn 3 | . 1 3 2 1 . Gunslinging 1 | . . 1 . . . Exploded 3 | . 1 3 . . . Melee . | . . . . . . Uniques/NPCs Destroyed . | . . . . . . Combat | -11 -10 -9 -9 -9 -8 -------- Run | Scr Mat Mat Min Exi Min Damage Taken 2895 | . 681 1774 393 . 47 Core 447 | . 47 309 67 . 24 Absorbed by Shields . | . . . . . . Core Remaining (%) 90 | 100 81 . . . . Volleys Fired 302 | . 76 162 64 . . Largest 2 | . 2 2 2 . . Hottest 156 | . 100 112 156 . . Shots Fired 551 | . 146 308 86 8 3 Gun 408 | . 133 208 56 8 3 Cannon 91 | . . 91 . . . Launcher 16 | . 8 8 . . . Special 36 | . 5 1 30 . . Kinetic 330 | . 112 207 . 8 3 Thermal 157 | . 26 45 86 . . Explosive . | . . . . . . Electromagnetic 64 | . 8 56 . . . Robot Hit Streak 14 | . 13 14 10 7 1 Robot Miss Streak 5 | . 2 5 3 1 2 Penetration Max . | . . . . . . Secondary Targets 6 | . 2 3 1 . . Max Gunslinging Chain 1 | . 1 1 1 . . Autonomous 11 | . . . . 8 3 Shots Hit Robots 337 | . 88 203 38 7 1 Core Hits 137 | . 30 85 18 4 . Critical Hits 6 | . . 6 . . . Critical Kills . | . . . . . . Critical Parts Destroyed 6 | . . 6 . . . Melee Attacks . | . . . . . . Impact . | . . . . . . Slashing . | . . . . . . Piercing . | . . . . . . Sneak Attacks . | . . . . . . Combat Hostiles . | . . . . . . Follow-up Attacks . | . . . . . . Damage Inflicted 5733 | . 1192 3598 712 174 57 Guns 3757 | . 984 1878 664 174 57 Cannons 1211 | . . 1211 . . . Explosions 717 | . 208 509 . . . Melee . | . . . . . . Ramming . | . . . . . . Kinetic 3165 | . 817 2117 . 174 57 Thermal 1737 | . 226 799 712 . . Explosive . | . . . . . . Electromagnetic 831 | . 149 682 . . . Impact . | . . . . . . Slashing . | . . . . . . Piercing . | . . . . . . Highest Corruption 3 | . 3 2 2 2 2 Average Corruption 2 | . 2 2 2 2 2 Corruption Purged . | . . . . . . Effects 62 | . 20 22 12 8 . Message Errors 17 | . 5 5 4 3 . Matter Fused 4 | . 4 . . . . Heat Flow Errors 8 | . 3 1 1 3 . Energy Discharges 7 | . 2 3 1 1 . Data Loss (minor) 14 | . 4 7 2 1 . Targeting Errors 11 | . 2 5 4 . . Weapon Failures 1 | . . 1 . . . Overload Shots . | . . . . . . Overflow Damage 61 | . . 61 . . . Projectiles 27 | . . 27 . . . Explosions 34 | . . 34 . . . Melee . | . . . . . . Knockbacks 13 | . . 13 . . . Impact . | . . . . . . Kinetic 9 | . . 9 . . . Secondary 4 | . . 4 . . . Self-Inflicted Damage 79 | . 14 65 . . . Shots 3 | . 1 2 . . . Rammed . | . . . . . . Targets Rammed . | . . . . . . Kicked . | . . . . . . Crushed . | . . . . . . Highest Temperature 243 | . 232 135 204 243 . Average Temperature 52 | . 90 16 53 105 . Received Heat Transfer 1035 | . 306 606 123 . . Siege Activations . | . . . . . . Robots Corrupted 1 | . . 1 . . . Combat Hostiles 1 | . . 1 . . . Parts Fried 5 | . 1 4 . . . Impact Corruptions 1 | . . 1 . . . Robots Melted . | . . . . . . Combat Hostiles . | . . . . . . Parts Melted 5 | . 1 1 3 . . Heat Transferred 3615 | . 475 1597 1543 . . Parts Sabotaged . | . . . . . . Parts Stolen . | . . . . . . Parts Stripped . | . . . . . . Power Chain Reactions 5 | . 1 4 . . . Missiles Intercepted . | . . . . . . Alert | -11 -10 -9 -9 -9 -8 ------- Run | Scr Mat Mat Min Exi Min Peak Influence 361 | . 155 361 175 . 2 Initial 70 | . . . 70 . . Average 112 | . 58 185 31 . 1 Maximum Alert Level 1 | . . 1 . . . Low Security (%) 79 | 100 100 56 100 . 100 Level 1 20 | . . 43 . . . Level 2 . | . . . . . . Level 3 . | . . . . . . Level 4 . | . . . . . . Level 5 . | . . . . . . High Security . | . . . . . . Max Security . | . . . . . . Squads Dispatched 4 | . 1 3 . . . Investigation 2 | . 1 1 . . . Extermination . | . . . . . . Reinforcement 2 | . . 2 . . . Assault . | . . . . . . Garrison . | . . . . . . Intercept . | . . . . . . Construction Impeded . | . . . . . . Haulers Reinforced . | . . . . . . Stealth | -11 -10 -9 -9 -9 -8 --------- Run | Scr Mat Mat Min Exi Min Distress Signals 5 | . 4 1 . . . Communications Jammed . | . . . . . . Distress Signals . | . . . . . . Times Spotted 112 | . 23 66 19 . 4 Peak Tracking Total 6 | . 6 5 5 2 4 Tactical Retreats 10 | . 1 5 4 . . Traps | -11 -10 -9 -9 -9 -8 ------- Run | Scr Mat Mat Min Exi Min Traps Triggered 5 | . 3 2 . . . Indirectly 1 | . . 1 . . . Trap Hack Attempts . | . . . . . . Triggered . | . . . . . . Disarmed . | . . . . . . Reprogrammed . | . . . . . . Reused . | . . . . . . Traps Extracted . | . . . . . . Installed . | . . . . . . Triggered . | . . . . . . Exploded 1 | . . . . 1 . Machines | -11 -10 -9 -9 -9 -8 ---------- Run | Scr Mat Mat Min Exi Min Machines Disabled 3 | . . 3 . . . Max in Single Turn 1 | . . 1 . . . Machines Sabotaged . | . . . . . . Garrisons Compromised . | . . . . . . Overloaded Fab Kills . | . . . . . . Fab Network Shutdowns . | . . . . . . Hacking | -11 -10 -9 -9 -9 -8 --------- Run | Scr Mat Mat Min Exi Min Machines Accessed 26 | . 7 13 1 5 . Terminals 15 | . 5 9 1 . . Fabricators . | . . . . . . Repair Stations 2 | . 1 1 . . . Recycling Units 2 | . 1 1 . . . Scanalyzers 2 | . . 2 . . . Garrison Access . | . . . . . . Total Hacks 134 | . 24 55 5 50 . Successful 112 | . 15 43 4 50 . Failed 22 | . 9 12 1 . . Catastrophic 4 | . 2 2 . . . Database Lockouts . | . . . . . . Manual 14 | . 3 6 4 1 . Terminals 50 | . 18 27 5 . . Fabricators . | . . . . . . Repair Stations 7 | . 3 4 . . . Recycling Units 4 | . 3 1 . . . Scanalyzers 23 | . . 23 . . . Garrison Access . | . . . . . . Terminal Hacks 80 | . 10 16 4 50 . Record 49 | . . . . 49 . Prototype ID Bank 5 | . 1 4 . . . Branch Access Points 3 | . 1 1 1 . . Emergency Access Points 2 | . 1 1 . . . Alert Level 7 | . 3 4 . . . Unreport Threat 6 | . 1 3 2 . . Locate Traps 2 | . . 2 . . . Dispatch Records 1 | . 1 . . . . Maintenance Status 1 | . 1 . . . . Reinforcement Status 1 | . . 1 . . . Zone Layout 2 | . 1 . 1 . . EX-Prototype ID Bank 1 | . . . . 1 . Fabricator Hacks . | . . . . . . Repair Station Hacks 6 | . 2 4 . . . Scan Component 3 | . 1 2 . . . Repair 3 | . 1 2 . . . Recycling Unit Hacks 4 | . 3 1 . . . Process 1 | . 1 . . . . Report Inventory 2 | . 1 1 . . . Retrieve Matter 1 | . 1 . . . . Scanalyzer 22 | . . 22 . . . Insert Component 11 | . . 11 . . . Analyze 11 | . . 11 . . . Garrison Access Hacks . | . . . . . . Unauthorized Hacks . | . . . . . . Terminals . | . . . . . . Fabricators . | . . . . . . Repair Stations . | . . . . . . Recycling Units . | . . . . . . Scanalyzers . | . . . . . . Garrison Access . | . . . . . . Data Cores Recovered 1 | . . 1 . . . Used . | . . . . . . Hacking Detections 18 | . 6 11 1 . . Full Trace Events 2 | . 1 1 . . . Feedback Events . | . . . . . . Feedback Blocked . | . . . . . . Robot Schematics Acquired . | . . . . . . Robots Built . | . . . . . . Matter . | . . . . . . Time . | . . . . . . Total Robot Build Rating . | . . . . . . Part Schematics Acquired 10 | . . 10 . . . Parts Built . | . . . . . . Matter . | . . . . . . Time . | . . . . . . Total Part Build Rating . | . . . . . . Parts Repaired 3 | . 1 2 . . . Time 96 | . 32 64 . . . Parts Recycled . | . . . . . . Recycled Matter 184 | . 184 . . . . Retrieved Matter 220 | . 220 . . . . Retrieved Components . | . . . . . . Parts Scanalyzed 11 | . . 11 . . . Part Schematics Acquired 10 | . . 10 . . . Parts Damaged . | . . . . . . Bothacking | -11 -10 -9 -9 -9 -8 ------------ Run | Scr Mat Mat Min Exi Min Used RIF Installer . | . . . . . . Robots Hacked . | . . . . . . Non-combat . | . . . . . . Combat . | . . . . . . Robot Hacks Applied . | . . . . . . Relay Couplers Released . | . . . . . . Robots Rewired . | . . . . . . Allies Hacked . | . . . . . . Hacks Repelled . | . . . . . . Allies | -11 -10 -9 -9 -9 -8 -------- Run | Scr Mat Mat Min Exi Min Total Allies . | . . . . . . Largest Group . | . . . . . . Highest-Rated Group . | . . . . . . Highest-Rated Ally . | . . . . . . Total Orders . | . . . . . . Ally Attacks . | . . . . . . Total Damage . | . . . . . . Kills . | . . . . . . Allies Corrupted . | . . . . . . Allies Melted . | . . . . . . Intel | -11 -10 -9 -9 -9 -8 ------- Run | Scr Mat Mat Min Exi Min Robot Analysis Total . | . . . . . . Derelict Logs Recovered 1 | . . . 1 . . Drone Launches . | . . . . . . Drone Recoveries . | . . . . . . Exploration | -11 -10 -9 -9 -9 -8 ------------- Run | Scr Mat Mat Min Exi Min Turns Passed 6559 | 81 1871 2633 1029 942 3 Spaces Moved 3936 | 47 1088 1729 499 571 2 Core 6 | 5 . 1 . . . Treads 1719 | 42 218 387 499 571 2 Legs 585 | . 585 . . . . Wheels 1626 | . 285 1341 . . . Hover . | . . . . . . Flight . | . . . . . . Fastest Speed 50 | 50 100 90 160 160 160 Average Speed 130 | 148 139 106 160 160 160 Slowest Speed 550 | 160 180 550 160 160 160 Overloaded Moves . | . . . . . . Propulsion Burnouts . | . . . . . . Robots Hopped . | . . . . . . Cave-ins Triggered . | . . . . . . Exploration Rate (%) 60 | 3 98 96 69 93 4 Regions Visited 5 Branch Regions 3 Pre-discovered Areas 1 | . . . . 1 . Known Exits Taken 1 | . . 1 . . . Unknown Exits Taken 4 | 1 1 . 1 1 . Scrap Searched 2 | . . . 2 . . Spaces Dug 2 | . 1 1 . . . Terrain Destroyed 28 | . 6 13 2 . 7 Melee . | . . . . . . Projectile 12 | . 1 2 2 . 7 AOE 16 | . 5 11 . . . Terrain Rammed . | . . . . . . Walls Destroyed . | . . . . . . Machines Disabled . | . . . . . . Actions | -11 -10 -9 -9 -9 -8 --------- Run | Scr Mat Mat Min Exi Min Total 4746 | 55 1299 2209 580 601 2 Wait 308 | . 72 219 6 11 . Move 3931 | 46 1087 1728 498 570 2 Hop . | . . . . . . Pick Up 56 | 2 19 26 1 8 . Fast Attach 16 | 6 4 6 . . . Attach 17 | . 5 10 1 1 . Detach 7 | . 5 2 . . . Swap 59 | 1 14 31 9 4 . Drop 50 | . 17 25 1 7 . Fire 302 | . 76 162 64 . . Melee . | . . . . . . Ram . | . . . . . . Kick . | . . . . . . Crush . | . . . . . . Escape Stasis . | . . . . . . Rewire . | . . . . . . Trap . | . . . . . . Miscellaneous . | . . . . . . Route ------- -11/Scrapyard -10/Materials (discovered 4 exits: *Mat x3 / *Min) -9/Materials (discovered 5 exits: [*Mat x3] / *Min / *Sto) -9/Mines -9/Exiles (discovered 2 exits: [*Min x2]) -8/Mines History --------- Turn | Location | Event 15 | -11/Scrapyard | Discovered new exit (range 15) 82 | -11/Scrapyard | Entered Materials 103 | -10/Materials | Identified exit to Mines 314 | -10/Materials | Build established: Mutant 671 | -10/Materials | Discovered new exit (range 7) 1089 | -10/Materials | Build established: Scavenger-Mutant 1166 | -10/Materials | Discovered new exit (range 7) 1296 | -10/Materials | Repaired Hvy. Assault Rifle 1382 | -10/Materials | Discovered new exit (range 15) 1602 | -10/Materials | Build established: Mutant 1953 | -10/Materials | Entered another Materials area 1953 | -9/Materials | Evolved 2 slots: Propulsion x1, Utility x1 2495 | -9/Materials | Discovered new exit (range 9) 2839 | -9/Materials | Repaired Arm. Wheel 2872 | -9/Materials | Repaired Arm. Wheel 2892 | -9/Materials | Discovered new exit (range 3) 3030 | -9/Materials | Core integrity fell below 50% 3329 | -9/Materials | Discovered new exit (range 10) 3629 | -9/Materials | Discovered new exit (range 11) 4069 | -9/Materials | Discovered new exit (range 12) 4225 | -9/Materials | Build established: Scavenger-Mutant 4474 | -9/Materials | Identified exit to Mines 4474 | -9/Materials | Identified exit to Storage 4586 | -9/Materials | Entered Mines 4591 | -9/Mines | Core integrity fell below 20% 5097 | -9/Mines | Excavation squad dispatched 5097 | -9/Mines | A large section of the Mines collapsed 5347 | -9/Mines | Excavation squad dispatched 5597 | -9/Mines | Excavation squad dispatched 5607 | -9/Mines | Deemed a non-threat by the Exiles lab entrance 5609 | -9/Mines | Discovered new exit (range 5) 5615 | -9/Mines | Entered Exiles 5641 | -9/Exiles | Discovered new exit (range 14) 5687 | -9/Exiles | Met 8R-AWN 5715 | -9/Exiles | Met EX-HEX 5804 | -9/Exiles | Met EX-DEC 5812 | -9/Exiles | Build established: Mutant 5838 | -9/Exiles | Visited The Gauntlet 6127 | -9/Exiles | Met EX-BIN 6253 | -9/Exiles | Aligned with FarCom system 6255 | -9/Exiles | Given EX-Vault access code 6293 | -9/Exiles | Opened EX-Vault 6305 | -9/Exiles | Found Prototype Slashing Weapon 6306 | -9/Exiles | Identified Longsword +1 6313 | -9/Exiles | Found Prototype Ballistic Gun 6315 | -9/Exiles | Identified AWS/Gauss 6319 | -9/Exiles | Found Prototype Processor 6320 | -9/Exiles | Identified 0b10 Alert Chip 6376 | -9/Exiles | Exiles lab attacked by MAIN.C 6455 | -9/Exiles | Learned location of Zion (-6) 6539 | -9/Exiles | Discovered new exit (range 14) 6557 | -9/Exiles | Left Exiles lab with AWS/Gauss 6557 | -9/Exiles | Entered Mines 6560 | -8/Mines | Destroyed by S-10 Pest with Light Assault Rifle Last Messages --------------- go go go take the back way out!" 06494_ Slug penetrates 8R-AWN. 06496_ Machine disabled. 06499_ Slug penetrates 8R-AWN. 06499_ G-34 Mercenary destroyed. 06502_ Slug penetrates 8R-AWN. 06539_ EXIT=FOUND 06546_ CN%M|TJ5